bitfinex-derivatives/quotes_BTCF0:USTF0_20260107
["timestamp","ask_amount","ask_price","bid_price","bid_amount"]
[1767744224552,0.05918947,93816.0,93797.0,0.05127579]
[1767744225252,0.05918947,93816.0,93806.0,0.010665]
[1767744225454,0.04606246,93816.0,93808.0,0.010664]
[1767744226749,0.04606246,93813.0,93793.0,0.21820824]
[1767744226956,0.04606246,93813.0,93798.0,0.010665]
[1767744227251,0.04606246,93812.0,93798.0,0.010665]
[1767744228550,0.04606246,93812.0,93800.0,0.010665]
[1767744229154,0.04606246,93812.0,93797.0,0.010666]
[1767744229350,0.09827619,93811.0,93793.0,0.09072]
[1767744229558,0.04606246,93797.0,93771.0,0.02931406]
[1767744229742,0.04606246,93785.0,93770.0,0.09068]
[1767744229941,0.14433865,93774.0,93763.0,0.09068]
[1767744230148,0.14433865,93763.0,93745.0,0.101351]
[1767744230355,0.14433865,93762.0,93742.0,0.010672]
[1767744230556,0.04606246,93761.0,93744.0,0.09068]
[1767744230752,0.04606246,93761.0,93744.0,0.101352]
[1767744230953,0.04606246,93761.0,93748.0,0.010671]
[1767744231252,0.09827619,93762.0,93750.0,0.010671]
[1767744231458,0.09827619,93762.0,93747.0,0.010671]
[1767744231656,0.09827619,93762.0,93749.0,0.01280437]
[1767744232061,0.14433865,93762.0,93749.0,0.00213337]
[1767744233762,0.09827619,93762.0,93750.0,0.010671]
[1767744234264,0.09827619,93762.0,93749.0,0.00213337]
[1767744234458,0.09614351,93762.0,93750.0,0.08947437]
[1767744235363,0.04606246,93759.0,93731.0,0.03360049]
[1767744235668,0.04606246,93759.0,93737.0,0.010672]
[1767744236055,0.04606246,93758.0,93733.0,0.010673]
[1767744236468,0.04606246,93748.0,93733.0,0.010673]
[1767744236667,0.14433865,93748.0,93735.0,0.010673]
[1767744236855,0.14433865,93746.0,93735.0,0.010673]
[1767744237059,0.14433865,93744.0,93731.0,0.010673]
[1767744237259,0.14433865,93744.0,93733.0,0.010673]
[1767744237465,0.14433865,93744.0,93735.0,0.010673]
[1767744239261,0.09363022,93750.0,93730.0,0.08947437]
[1767744239469,0.1357741,93753.0,93741.0,0.010672]
[1767744239672,0.04214388,93751.0,93741.0,0.010672]
[1767744239966,0.1357741,93751.0,93741.0,0.010672]
[1767744240162,0.09072,93754.0,93743.0,0.010672]
[1767744240360,0.13286388,93754.0,93740.0,0.10014637]
[1767744240562,0.1357741,93748.0,93736.0,0.010672]
[1767744240964,0.1357741,93748.0,93738.0,0.08947437]
[1767744242472,0.09363022,93748.0,93739.0,0.010672]
[1767744243876,0.18170699,93754.0,93738.0,0.08947437]
[1767744244175,0.09072,93756.0,93749.0,0.010671]
[1767744244565,0.09072,93756.0,93746.0,0.010671]
[1767744244772,0.09098699,93760.0,93750.0,0.010671]
[1767744244963,0.09098699,93760.0,93750.0,0.10014537]
[1767744245158,0.04506554,93759.0,93750.0,0.10014537]
[1767744245474,0.13605253,93754.0,93740.0,0.08947437]
[1767744245771,0.13605253,93754.0,93747.0,0.010671]
[1767744246270,0.04506554,93758.0,93749.0,0.010671]
[1767744246471,0.09072,93763.0,93750.0,0.08947437]
[1767744246980,0.13605253,93762.0,93750.0,0.08947437]
[1767744247166,0.13605253,93760.0,93750.0,0.08947437]
[1767744247764,0.13605253,93760.0,93751.0,0.010671]
[1767744248773,0.13605253,93759.0,93750.0,0.08947437]
[1767744248975,0.13605253,93754.0,93745.0,0.010671]
[1767744249374,0.13605253,93754.0,93747.0,0.010671]
[1767744250169,0.09098699,93753.0,93749.0,0.010671]
[1767744250879,0.09098699,93753.0,93746.0,0.010671]
[1767744251269,0.09098699,93753.0,93740.0,0.08947437]
[1767744252077,0.09098699,93753.0,93747.0,0.010671]
[1767744254170,0.13605253,93753.0,93747.0,0.010671]
[1767744255271,0.09098699,93752.0,93740.0,0.08947437]
[1767744255472,0.46754827,93752.0,93740.0,0.08947437]
[1767744256278,0.09098699,93752.0,93746.0,0.010671]
[1767744256863,0.09098699,93752.0,93748.0,0.010671]
[1767744258278,0.04506554,93762.0,93740.0,0.08947437]
[1767744258479,0.04506554,93762.0,93750.0,0.10014537]
[1767744259479,0.04506554,93762.0,93750.0,0.08947437]
[1767744259875,0.04506554,93762.0,93745.0,0.010672]
[1767744260078,0.09098699,93759.0,93745.0,0.010672]
[1767744260279,0.04506554,93758.0,93745.0,0.010672]
[1767744261271,0.04506554,93757.0,93745.0,0.010672]
[1767744261774,0.04506554,93754.0,93740.0,0.08947437]
[1767744263088,0.04506554,93754.0,93747.0,0.010671]
[1767744263382,0.04506554,93754.0,93741.0,0.010672]
[1767744263783,0.04506554,93754.0,93740.0,0.08947437]
[1767744263784,0.04506554,93754.0,93743.0,0.010672]
[1767744265292,0.04506554,93754.0,93742.0,0.010672]
[1767744265588,0.04506554,93754.0,93740.0,0.08947437]
[1767744265589,0.04506554,93748.0,93733.0,0.09076]
[1767744265777,0.04506554,93748.0,93730.0,0.08947437]
[1767744265979,0.04506554,93748.0,93737.0,0.010672]
[1767744266671,0.04506554,93748.0,93730.0,0.18023437]
[1767744266884,0.04506554,93740.0,93727.0,0.010674]
[1767744267082,0.08947437,93750.0,93724.0,0.09076]
[1767744267083,0.04506554,93736.0,93724.0,0.09076]
[1767744267282,0.13605253,93736.0,93724.0,0.09076]
[1767744267482,0.04506554,93735.0,93724.0,0.101434]
[1767744268380,0.04506554,93735.0,93726.0,0.010674]
[1767744268580,0.04506554,93733.0,93724.0,0.09076]
[1767744268783,0.04506554,93730.0,93719.0,0.00213405]
[1767744269291,0.04506554,93730.0,93706.0,0.010676]
[1767744269292,0.04506554,93724.0,93703.0,0.09076]
[1767744269587,0.09076,93735.0,93710.0,0.08947437]
[1767744269588,0.04506554,93722.0,93710.0,0.08947437]
[1767744269788,0.04506554,93722.0,93703.0,0.09076]
[1767744269990,0.13605253,93722.0,93710.0,0.10014937]
[1767744271289,0.13605253,93722.0,93712.0,0.010675]
[1767744271791,0.04225236,93720.0,93703.0,0.09076]
[1767744271988,0.04225236,93720.0,93702.0,0.010676]
[1767744271989,0.14163735,93712.0,93698.0,0.010677]
[1767744272185,0.04225236,93701.0,93689.0,0.00213473]
[1767744272382,0.14163735,93701.0,93694.0,0.010677]
[1767744272685,0.09076,93704.0,93694.0,0.010677]
[1767744273283,0.09076,93704.0,93697.0,0.010677]
[1767744273489,0.09076,93704.0,93700.0,0.010677]
[1767744273795,0.09076,93704.0,93696.0,0.010677]
[1767744275190,0.04225236,93706.0,93696.0,0.010677]
[1767744275392,0.09076,93704.0,93696.0,0.010677]
[1767744275695,0.09076,93704.0,93689.0,0.00213473]
[1767744275696,0.04225236,93703.0,93693.0,0.010677]
[1767744275896,0.04225236,93701.0,93689.0,0.00213473]
[1767744276394,0.04225236,93699.0,93689.0,0.00213473]
[1767744277193,0.04225236,93699.0,93690.0,0.010678]
[1767744277694,0.09938499,93700.0,93671.0,0.10762004]
[1767744277695,0.04225236,93691.0,93671.0,0.10762004]
[1767744277991,0.04225236,93695.0,93685.0,0.010678]
[1767744278784,0.04225236,93695.0,93675.0,0.0424583]
[1767744278785,0.00010637,93694.0,93682.0,0.010679]
[1767744278987,0.00010637,93694.0,93680.0,0.08947437]
[1767744278988,0.00010637,93694.0,93684.0,0.010678]
[1767744280094,0.00010637,93694.0,93686.0,0.010678]
[1767744280303,0.00010637,93694.0,93680.0,0.08947437]
[1767744280304,0.04225236,93689.0,93677.0,0.010679]
[1767744280490,0.04225236,93687.0,93677.0,0.010679]
[1767744281182,9.988e-05,93688.0,93670.0,0.13193267]
[1767744281387,9.988e-05,93688.0,93682.0,0.010679]
[1767744281886,9.988e-05,93688.0,93678.0,0.010679]
[1767744283489,9.988e-05,93688.0,93680.0,0.010679]
[1767744285302,9.988e-05,93688.0,93671.0,0.09694004]
[1767744285704,9.988e-05,93688.0,93684.0,0.010678]
[1767744286203,0.03966603,93704.0,93688.0,0.010678]
[1767744286503,0.37656128,93691.0,93690.0,0.08947437]
[1767744286805,0.03966603,93690.0,93676.0,0.010679]
[1767744286992,0.03966603,93688.0,93668.0,0.0408972]
[1767744287192,0.03966603,93688.0,93674.0,0.01068]
[1767744287601,0.03966603,93688.0,93676.0,0.010679]
[1767744288004,0.03966603,93688.0,93678.0,0.010679]
[1767744288505,0.03966603,93683.0,93665.0,0.101441]
[1767744288704,0.03966603,93683.0,93675.0,0.010679]
[1767744288896,0.03966603,93683.0,93665.0,0.101441]
[1767744289492,0.08947437,93710.0,93677.0,0.09947431]
[1767744289692,0.71116,93702.0,93681.0,0.010679]
[1767744290007,0.08947437,93691.0,93671.0,0.01068]
[1767744290194,0.0908,93690.0,93671.0,0.01068]
[1767744290500,0.18027437,93690.0,93662.0,0.0908]
[1767744290704,0.18027437,93690.0,93665.0,0.010681]
[1767744290705,0.010678,93688.0,93665.0,0.010681]
[1767744291006,0.18027437,93690.0,93665.0,0.010681]
[1767744291197,0.0908,93690.0,93668.0,0.09947431]
[1767744291396,0.03966603,93689.0,93672.0,0.01068]
[1767744291597,0.09581013,93684.0,93660.0,0.08947437]
[1767744291796,0.03966603,93679.0,93660.0,0.08947437]
[1767744292004,0.13046603,93678.0,93660.0,0.08947437]
[1767744292199,0.13046603,93678.0,93670.0,0.01068]
[1767744292399,0.0908,93678.0,93670.0,0.01068]
[1767744292996,0.0908,93678.0,93667.0,0.01068]
[1767744294800,0.0908,93678.0,93660.0,0.18894868]
[1767744295003,0.0908,93677.0,93671.0,0.09947431]
[1767744295192,0.0908,93677.0,93668.0,0.08947437]
[1767744295701,0.0908,93677.0,93667.0,0.08947437]
[1767744295899,0.03966603,93691.0,93675.0,0.010679]
[1767744296096,0.0908,93690.0,93680.0,0.08947437]
[1767744296296,0.0908,93690.0,93676.0,0.010679]
[1767744296497,0.0908,93690.0,93679.0,0.010679]
[1767744296897,0.0908,93690.0,93671.0,0.14037151]
[1767744296898,0.03966603,93689.0,93677.0,0.010679]
[1767744297498,0.03966603,93687.0,93664.0,0.09947431]
[1767744297698,0.03966603,93684.0,93675.0,0.010679]
[1767744297901,0.03966603,93698.0,93675.0,0.09947431]
[1767744298096,0.03966603,93696.0,93675.0,0.09947431]
[1767744298410,0.01269219,93715.0,93675.0,0.09947431]
[1767744298411,0.0908,93695.0,93679.0,0.09947431]
[1767744298601,0.0908,93694.0,93679.0,0.09947431]
[1767744300194,0.37656128,93693.0,93684.0,0.010678]
[1767744300507,0.03966603,93701.0,93684.0,0.010678]
[1767744300508,0.0908,93694.0,93684.0,0.010678]
[1767744301009,0.0908,93694.0,93681.0,0.010679]
[1767744302009,0.04069136,93712.0,93690.0,0.09031455]
[1767744302197,0.04069136,93710.0,93694.0,0.010677]
[1767744302599,0.09712911,93713.0,93690.0,0.09031455]
[1767744302600,0.0908,93709.0,93702.0,0.010676]
[1767744303009,0.04069136,93718.0,93695.0,0.04209375]
[1767744303203,0.09293405,93719.0,93714.0,0.010675]
[1767744303403,8.6e-07,93719.0,93709.0,0.04209375]
[1767744303601,8.6e-07,93719.0,93709.0,0.1324083]
[1767744303807,8.6e-07,93719.0,93709.0,0.09031455]
[1767744304111,8.6e-07,93719.0,93709.0,0.010676]
[1767744304608,8.6e-07,93719.0,93711.0,0.010675]
[1767744304813,8.6e-07,93719.0,93713.0,0.010675]
[1767744305315,8.6e-07,93719.0,93710.0,0.010675]
[1767744307218,8.6e-07,93719.0,93705.0,0.04526516]
[1767744307416,8.6e-07,93719.0,93714.0,0.010675]
[1767744307713,0.0908,93732.0,93720.0,0.09122483]
[1767744307922,0.0908,93735.0,93727.0,0.10189883]
[1767744308217,0.01270675,93736.0,93724.0,0.010674]
[1767744308411,0.01270675,93736.0,93722.0,0.09122483]
[1767744308919,0.0908,93740.0,93726.0,0.010674]
[1767744309719,0.0908,93740.0,93728.0,0.010673]
[1767744309918,0.10346891,93740.0,93728.0,0.010673]
[1767744310120,0.0908,93740.0,93730.0,0.010673]
[1767744310416,0.00213337,93749.0,93730.0,0.010673]
[1767744310417,0.00213337,93749.0,93731.0,0.04526516]
[1767744310617,0.0908,93748.0,93734.0,0.10189783]
[1767744310918,0.00213337,93749.0,93734.0,0.14716299]
[1767744311312,0.00213337,93749.0,93738.0,0.010672]
[1767744311511,0.09825224,93772.0,93748.0,0.09122483]
[1767744311720,0.04221864,93767.0,93741.0,0.13648999]
[1767744311920,0.04221864,93766.0,93744.0,0.010672]
[1767744312117,0.04221864,93766.0,93742.0,0.09122483]
[1767744312513,0.04221864,93766.0,93746.0,0.010671]
[1767744312715,0.04221864,93766.0,93745.0,0.010672]
[1767744313208,0.04221864,93765.0,93742.0,0.09122483]
[1767744313408,0.04221864,93765.0,93743.0,0.010672]
[1767744313918,0.04221864,93765.0,93743.0,0.10189683]
[1767744314313,0.04221864,93765.0,93746.0,0.010671]
[1767744314508,0.0908,93771.0,93749.0,0.10189583]
[1767744314706,0.37656128,93764.0,93749.0,0.10189583]
[1767744314907,0.0908,93771.0,93747.0,0.13648999]
[1767744315111,0.0908,93771.0,93733.0,0.010673]
[1767744315112,0.04221864,93780.0,93758.0,0.09122483]
[1767744315315,0.09076,93779.0,93758.0,0.09122483]
[1767744315512,0.14571548,93779.0,93761.0,0.01067]
[1767744315719,0.04221864,93778.0,93758.0,0.09122483]
[1767744315918,0.04221864,93778.0,93758.0,0.10189483]
[1767744316724,0.04221864,93778.0,93760.0,0.01067]
[1767744316920,0.04221864,93778.0,93758.0,0.09122483]
[1767744316921,0.04221864,93778.0,93763.0,0.010669]
[1767744317923,0.04221864,93789.0,93764.0,0.09122483]
[1767744318226,0.04221864,93787.0,93765.0,0.010669]
[1767744318425,0.04221864,93786.0,93767.0,0.010669]
[1767744318626,0.04221864,93785.0,93767.0,0.010669]
[1767744319427,0.14047088,93785.0,93758.0,0.04526516]
[1767744319826,0.14047088,93785.0,93754.0,0.09076]
[1767744319827,0.09076,93784.0,93768.0,0.010669]
[1767744320018,0.09076,93784.0,93762.0,0.05593516]
[1767744320217,0.18901224,93784.0,93762.0,0.05593516]
[1767744320424,0.14047088,93783.0,93762.0,0.01067]
[1767744320625,0.09825224,93780.0,93760.0,0.01067]
[1767744321230,0.14047088,93787.0,93764.0,0.010669]
[1767744321529,0.93388085,93789.0,93764.0,0.010669]
[1767744321530,0.09825224,93785.0,93764.0,0.010669]
[1767744321730,0.14047088,93785.0,93764.0,0.010669]
[1767744321932,0.14047088,93784.0,93764.0,0.010669]
[1767744323931,0.14047088,93782.0,93761.0,0.05593516]
[1767744324132,0.14047088,93782.0,93761.0,0.04526516]
[1767744324331,0.09076,93786.0,93760.0,0.01067]
[1767744324332,0.14047088,93781.0,93760.0,0.01067]
[1767744325024,0.14047088,93781.0,93762.0,0.01067]
[1767744325336,0.14047088,93781.0,93763.0,0.010669]
[1767744326428,0.14047088,93781.0,93761.0,0.01067]
[1767744326731,0.14047088,93781.0,93759.0,0.13648999]
[1767744327031,0.14047088,93780.0,93759.0,0.13648999]
[1767744327333,0.14047088,93775.0,93754.0,0.14669516]
[1767744327632,0.14047088,93775.0,93756.0,0.01067]
[1767744329326,0.14047088,93774.0,93758.0,0.01067]
[1767744329530,0.14047088,93774.0,93760.0,0.01067]
[1767744329730,0.37656128,93773.0,93754.0,0.13602516]
[1767744330137,0.14047088,93774.0,93754.0,0.13602516]
[1767744331038,0.09825224,93774.0,93755.0,0.04526516]
[1767744331431,0.09058488,93772.0,93754.0,0.09076]
[1767744332238,0.09058488,93772.0,93757.0,0.01067]
[1767744333132,0.04073264,93775.0,93760.0,0.01067]
[1767744333328,0.13131752,93775.0,93757.0,0.01067]
[1767744333532,0.13131752,93775.0,93759.0,0.01067]
[1767744335533,0.09058488,93775.0,93763.0,0.010669]
[1767744335833,0.04073264,93773.0,93754.0,0.13340218]
[1767744336036,0.09058488,93774.0,93759.0,0.01067]
[1767744336339,0.13131752,93774.0,93759.0,0.01067]
[1767744337935,0.13131752,93774.0,93761.0,0.01067]
[1767744338324,0.13131752,93774.0,93763.0,0.010669]
[1767744339334,0.13131752,93774.0,93765.0,0.010669]
[1767744339530,0.13131752,93774.0,93763.0,0.010669]
[1767744339841,0.04073264,93770.0,93754.0,0.09076]
[1767744340230,0.09058488,93771.0,93761.0,0.01067]
[1767744340637,0.09058488,93767.0,93746.0,0.04264218]
[1767744340839,0.13131752,93758.0,93741.0,0.09072]
[1767744341136,0.13131752,93758.0,93742.0,0.010672]
[1767744341339,0.13131752,93758.0,93744.0,0.010672]
[1767744341541,0.13131752,93758.0,93741.0,0.09072]
[1767744341942,0.09058488,93758.0,93741.0,0.09072]
[1767744342132,0.09058488,93764.0,93745.0,0.04264218]
[1767744342443,0.09058488,93764.0,93751.0,0.010671]
[1767744342736,0.04073264,93761.0,93746.0,0.010671]
[1767744343130,0.04073264,93761.0,93748.0,0.010671]
[1767744343331,0.04073264,93765.0,93745.0,0.04264218]
[1767744343839,0.04073264,93773.0,93759.0,0.01067]
[1767744344042,0.09072,93772.0,93756.0,0.01067]
[1767744344241,0.09072,93772.0,93758.0,0.01067]
[1767744344744,0.09072,93772.0,93752.0,0.09572892]
[1767744344745,0.22203752,93772.0,93761.0,0.01067]
[1767744345047,0.37656128,93771.0,93761.0,0.01067]
[1767744345539,0.37656128,93771.0,93758.0,0.01067]
[1767744345845,0.13131752,93763.0,93748.0,0.010671]
[1767744346530,0.13131752,93763.0,93755.0,0.01067]
[1767744346729,0.13131752,93763.0,93743.0,0.010672]
[1767744346942,0.09072,93767.0,93729.0,0.05331518]
[1767744346943,0.13131752,93752.0,93729.0,0.05331518]
[1767744347135,0.13131752,93747.0,93726.0,0.04264218]
[1767744347445,0.13131752,93741.0,93725.0,0.09072]
[1767744347932,0.13131752,93741.0,93730.0,0.010673]
[1767744348138,0.13131752,93741.0,93732.0,0.010673]
[1767744348337,0.09058488,93741.0,93732.0,0.010673]
[1767744348945,0.09072,93745.0,93734.0,0.010673]
[1767744349143,0.09058488,93753.0,93742.0,0.010672]
[1767744349443,0.13131752,93760.0,93746.0,0.010671]
[1767744349637,0.09072,93759.0,93743.0,0.010672]
[1767744349836,0.22203752,93759.0,93743.0,0.010672]
[1767744350044,0.13131752,93758.0,93743.0,0.010672]
[1767744350839,0.13131752,93758.0,93736.0,0.04264218]
[1767744351040,0.13131752,93758.0,93746.0,0.010671]
[1767744351338,0.04073264,93763.0,93750.0,0.010671]
[1767744351541,0.09076,93762.0,93739.0,0.04264218]
[1767744351740,0.22207752,93762.0,93739.0,0.04264218]
[1767744351941,0.13131752,93761.0,93739.0,0.04264218]
[1767744352140,0.13131752,93761.0,93748.0,0.010671]
[1767744353456,0.13131752,93760.0,93748.0,0.010671]
[1767744353642,0.13131752,93759.0,93748.0,0.010671]
[1767744355249,0.04073264,93758.0,93748.0,0.010671]
[1767744355438,0.13131752,93758.0,93748.0,0.010671]
[1767744355638,0.13131752,93755.0,93745.0,0.010671]
[1767744355838,0.13131752,93755.0,93735.0,0.09076]
[1767744356542,0.09058488,93755.0,93735.0,0.13340218]
[1767744356743,0.09058488,93755.0,93740.0,0.08950564]
[1767744358250,0.09058488,93755.0,93746.0,0.010671]
[1767744358552,0.09058488,93755.0,93740.0,0.08950564]
[1767744358755,0.13131752,93761.0,93749.0,0.010671]
[1767744358952,0.13131752,93760.0,93746.0,0.010671]
[1767744359245,0.04073264,93758.0,93746.0,0.010671]
[1767744359455,0.04073264,93758.0,93740.0,0.08950564]
[1767744359749,0.09076,93762.0,93729.0,0.010673]
[1767744359750,1e-08,93743.0,93729.0,0.010673]
[1767744359953,0.08950564,93740.0,93731.0,0.010673]
[1767744360145,1e-08,93743.0,93718.0,0.04264218]
[1767744360345,0.08950564,93740.0,93725.0,0.010674]
[1767744360746,0.010671,93747.0,93727.0,0.010674]
[1767744361045,0.08950564,93750.0,93729.0,0.010673]
[1767744361246,0.09076,93751.0,93729.0,0.010673]
[1767744361455,0.10017664,93750.0,93731.0,0.010673]
[1767744361653,0.010671,93746.0,93728.0,0.010673]
[1767744361856,0.09419509,93739.0,93722.0,0.010674]
[1767744362052,0.101432,93738.0,93717.0,0.09076]
[1767744362257,0.09419509,93737.0,93722.0,0.010674]
[1767744362550,0.09419509,93737.0,93724.0,0.010674]
[1767744362751,0.09419509,93737.0,93720.0,0.08950564]
[1767744362752,0.09419509,93737.0,93726.0,0.010674]
[1767744363343,0.09076,93738.0,93720.0,0.08950564]
[1767744364052,0.09419509,93737.0,93711.0,0.010675]
[1767744365054,0.09419509,93729.0,93705.0,0.09870679]
[1767744365357,0.09419509,93729.0,93705.0,0.18946679]
[1767744365856,0.09419509,93729.0,93715.0,0.010675]
[1767744366359,0.18495509,93728.0,93715.0,0.010675]
[1767744367056,0.09419509,93727.0,93715.0,0.010675]
[1767744367459,0.09419509,93727.0,93709.0,0.010676]
[1767744367649,0.09419509,93725.0,93700.0,0.27897243]
[1767744368161,0.09419509,93719.0,93700.0,0.18026564]
[1767744369056,0.09419509,93719.0,93701.0,0.010677]
[1767744369758,0.10636321,93719.0,93701.0,0.010677]
[1767744369959,0.10636321,93719.0,93690.0,0.08950564]
[1767744370154,0.10636321,93719.0,93690.0,0.010678]
[1767744370155,0.09419509,93709.0,93690.0,0.010678]
[1767744370370,0.09076,93708.0,93689.0,0.00213473]
[1767744370557,0.09419509,93707.0,93689.0,0.00213473]
[1767744370859,0.09419509,93707.0,93689.0,0.01281273]
[1767744372154,0.09419509,93707.0,93692.0,0.01076628]
[1767744372355,0.09419509,93707.0,93695.0,0.010677]
[1767744372950,0.09419509,93707.0,93692.0,8.828e-05]
[1767744373267,0.09419509,93707.0,93693.0,0.010677]
[1767744373858,0.09419509,93707.0,93692.0,8.828e-05]
[1767744374364,0.09419509,93707.0,93689.0,0.010678]
[1767744374946,0.09419509,93707.0,93691.0,0.010678]
[1767744375152,0.47085114,93706.0,93691.0,0.010678]
[1767744375351,0.09419509,93705.0,93684.0,0.010678]
[1767744375561,0.18370073,93700.0,93683.0,0.010679]
[1767744375859,0.18370073,93700.0,93685.0,0.010678]
[1767744375860,9.477e-05,93699.0,93685.0,0.010678]
[1767744377762,9.477e-05,93699.0,93682.0,0.010679]
[1767744377958,9.477e-05,93699.0,93673.0,0.09076]
[1767744377959,0.08950564,93692.0,93679.0,0.010679]
[1767744378161,0.09419509,93691.0,93676.0,0.010679]
[1767744378362,9.477e-05,93690.0,93678.0,0.010679]
[1767744378757,9.477e-05,93690.0,93680.0,0.010679]
[1767744379258,9.477e-05,93690.0,93677.0,0.010679]
[1767744379654,9.477e-05,93690.0,93674.0,0.01068]
[1767744380169,0.10487309,93689.0,93665.0,0.010681]
[1767744380366,0.09419509,93687.0,93669.0,0.01068]
[1767744380663,9.477e-05,93686.0,93670.0,0.08950564]
[1767744380960,9.054e-05,93685.0,93676.0,0.08950564]
[1767744381166,0.0908,93696.0,93684.0,0.010678]
[1767744381468,0.0908,93695.0,93690.0,0.010678]
[1767744381659,0.18370073,93710.0,93690.0,0.010678]
[1767744381861,0.0908,93709.0,93690.0,0.010678]
[1767744382164,0.09419509,93708.0,93687.0,0.010678]
[1767744382964,0.09419509,93708.0,93689.0,0.010678]
[1767744383153,0.09419509,93708.0,93691.0,0.010678]
[1767744383359,0.01239303,93719.0,93698.0,0.18821243]
[1767744383661,0.18499509,93718.0,93703.0,0.010676]
[1767744383862,0.09419509,93724.0,93701.0,0.04057795]
[1767744384168,0.0908,93723.0,93704.0,0.09870679]
[1767744384357,0.0908,93722.0,93700.0,0.08950564]
[1767744384558,0.0908,93722.0,93707.0,0.010676]
[1767744385166,0.09419509,93721.0,93704.0,0.010676]
[1767744385373,0.09419509,93721.0,93706.0,0.010676]
[1767744385969,0.09419509,93721.0,93703.0,0.010676]
[1767744386158,0.09419509,93721.0,93702.0,0.010676]
[1767744386159,0.09419509,93719.0,93702.0,0.010676]
[1767744386861,0.09419509,93719.0,93704.0,0.010676]
[1767744387260,0.09419509,93708.0,93683.0,0.09870679]
[1767744387564,0.09419509,93698.0,93682.0,0.010679]
[1767744387762,0.09419509,93696.0,93671.0,0.09870679]
[1767744388168,0.09419509,93696.0,93680.0,0.010679]
[1767744388367,0.09419509,93696.0,93671.0,0.09870679]
[1767744391458,0.09175544,93704.0,93682.0,0.09680268]
[1767744391659,0.37656128,93702.0,93684.0,0.010678]
[1767744391861,0.0908,93703.0,93682.0,0.09680268]
[1767744392259,0.0908,93703.0,93683.0,0.010679]
[1767744392566,0.0908,93702.0,93689.0,0.10748068]
[1767744392764,0.0908,93701.0,93689.0,0.10748068]
[1767744392964,0.010675,93718.0,93691.0,0.09680268]
[1767744393268,0.0908,93717.0,93698.0,0.010677]
[1767744393468,0.0908,93717.0,93692.0,0.09680268]
[1767744394067,0.0908,93717.0,93693.0,0.09680268]
[1767744394269,0.0908,93717.0,93682.0,0.010679]
[1767744394270,0.0908,93716.0,93702.0,0.09680268]
[1767744394570,0.0908,93716.0,93708.0,0.010676]
[1767744395467,0.0908,93716.0,93710.0,0.010675]
[1767744395870,0.0908,93716.0,93707.0,0.010676]
[1767744396867,0.0908,93716.0,93704.0,0.010676]
[1767744397173,0.0908,93716.0,93699.0,0.010677]
[1767744397563,0.0908,93716.0,93697.0,0.09680268]
[1767744397762,0.0908,93716.0,93698.0,0.010677]
[1767744397968,0.09175544,93715.0,93690.0,0.09680268]
[1767744398168,0.09175544,93712.0,93693.0,0.010677]
[1767744398665,0.09175544,93712.0,93697.0,0.010677]
[1767744398869,0.0908,93716.0,93699.0,0.010677]
[1767744399572,0.09175544,93715.0,93696.0,0.010677]
[1767744399770,0.09175544,93712.0,93693.0,0.010677]
[1767744401177,0.09175544,93705.0,93688.0,0.010678]
[1767744401560,0.0908,93704.0,93688.0,0.010678]
[1767744402073,0.0908,93704.0,93690.0,0.010678]
[1767744402273,0.0908,93704.0,93687.0,0.010678]
[1767744402474,0.0908,93704.0,93689.0,0.010678]
[1767744403275,0.0908,93704.0,93691.0,0.010678]
[1767744403573,0.0908,93704.0,93679.0,0.13369037]
[1767744403768,0.0908,93704.0,93690.0,0.010678]
[1767744404676,0.0908,93704.0,93687.0,0.010678]
[1767744404969,0.37656128,93703.0,93679.0,0.14436937]
[1767744405271,2.8e-07,93703.0,93701.0,0.010676]
[1767744405477,0.0908,93707.0,93693.0,0.09680268]
[1767744405770,0.0908,93709.0,93704.0,0.010676]
[1767744406077,0.0908,93714.0,93704.0,0.010676]
[1767744406671,0.0908,93714.0,93693.0,0.010677]
[1767744406672,0.0908,93714.0,93701.0,0.010676]
[1767744409171,0.0908,93714.0,93696.0,0.09680268]
[1767744409369,0.0908,93714.0,93697.0,0.09680268]
[1767744410281,0.0908,93714.0,93691.0,0.13369037]
[1767744410482,0.0908,93714.0,93698.0,0.010677]
[1767744410776,0.09688705,93714.0,93698.0,0.010677]
[1767744410977,0.00608705,93712.0,93695.0,0.010677]
[1767744411184,0.00608705,93704.0,93679.0,0.09680268]
[1767744411373,0.00608705,93703.0,93679.0,0.18760268]
[1767744411682,0.00608705,93703.0,93687.0,0.010678]
[1767744412082,0.00608705,93703.0,93689.0,0.010678]
[1767744412678,0.09688705,93703.0,93686.0,0.010678]
[1767744412885,0.00513917,93700.0,93683.0,0.010679]
[1767744413378,0.00513917,93700.0,93687.0,0.010678]
[1767744414284,0.00513917,93700.0,93684.0,0.010678]
[1767744415387,0.00513917,93700.0,93686.0,0.010678]
[1767744415994,0.00513917,93700.0,93683.0,0.010679]
[1767744417093,0.00513917,93700.0,93679.0,0.010679]
[1767744417896,0.00513917,93700.0,93681.0,0.010679]
[1767744418392,0.0989707,93700.0,93680.0,0.010679]
[1767744418598,0.0989707,93700.0,93678.0,0.09680268]
[1767744418599,0.0989707,93698.0,93677.0,0.010679]
[1767744418792,0.0989707,93695.0,93673.0,0.01068]
[1767744419300,0.1096477,93695.0,93673.0,0.01068]
[1767744419499,0.1096487,93693.0,93670.0,0.01068]
[1767744419704,0.1897707,93692.0,93670.0,0.01068]
[1767744419899,0.010678,93691.0,93670.0,0.01068]
[1767744420498,0.1897707,93692.0,93672.0,0.01068]
[1767744420898,0.1897707,93692.0,93674.0,0.01068]
[1767744421193,0.1897707,93692.0,93662.0,0.13464271]
[1767744421194,0.0989707,93690.0,93662.0,0.13464271]
[1767744421397,0.0989707,93686.0,93668.0,0.01068]
[1767744421990,0.19737835,93692.0,93667.0,0.09677003]
[1767744422188,0.09590035,93706.0,93679.0,0.04267098]
[1767744422391,0.30608,93705.0,93681.0,0.09677003]
[1767744422592,0.010677,93697.0,93681.0,0.09677003]
[1767744423401,0.010677,93695.0,93681.0,0.09677003]
[1767744423703,0.0908,93694.0,93679.0,0.010679]
[1767744424004,0.101477,93694.0,93677.0,0.09677003]
[1767744425202,0.101477,93694.0,93679.0,0.010679]
[1767744425498,0.0908,93694.0,93681.0,0.010679]
[1767744425801,0.0908,93694.0,93677.0,0.09677003]
[1767744427203,0.0908,93694.0,93682.0,0.010679]
[1767744428000,0.101477,93694.0,93679.0,0.010679]
[1767744428202,0.010678,93692.0,93679.0,0.010679]
[1767744429203,0.0908,93694.0,93679.0,0.010679]